bitfinex-derivatives/quotes_BTCF0:USTF0_20250915
["timestamp","ask_amount","ask_price","bid_price","bid_amount"]
[1757897743534,0.0430374,115120.0,115110.0,0.90204082]
[1757897743834,0.0430374,115120.0,115110.0,0.82135]
[1757897744034,0.0430374,115120.0,115110.0,0.90204082]
[1757897744631,0.13712822,115120.0,115110.0,0.02111]
[1757897744828,0.03518,115100.0,115090.0,0.83133033]
[1757897745029,0.0570674,115100.0,115090.0,1.22133033]
[1757897745536,0.0570674,115100.0,115090.0,0.39177033]
[1757897745739,0.13775822,115100.0,115090.0,0.39177033]
[1757897746034,0.13775822,115100.0,115090.0,0.04377033]
[1757897746235,0.15564185,115100.0,115090.0,0.02357]
[1757897746634,0.15564185,115100.0,115090.0,0.002]
[1757897746836,0.15564185,115100.0,115090.0,0.02357]
[1757897747534,0.15564185,115100.0,115090.0,0.02157]
[1757897748041,0.03518,115080.0,115070.0,0.02157]
[1757897748231,0.05262055,115080.0,115070.0,0.88117]
[1757897748434,0.07441234,115080.0,115070.0,0.88117]
[1757897748629,0.07441234,115080.0,115070.0,0.96186082]
[1757897748836,0.07441234,115080.0,115070.0,0.17226082]
[1757897749438,0.05262055,115080.0,115070.0,0.09357]
[1757897750341,0.05262055,115080.0,115070.0,0.09457]
[1757897751035,0.05262055,115080.0,115070.0,0.17526082]
[1757897751231,0.05262055,115080.0,115070.0,0.09457]
[1757897751437,0.05262055,115080.0,115070.0,0.17526082]
[1757897753145,0.07437929,115080.0,115070.0,0.17526082]
[1757897754245,0.05262055,115080.0,115070.0,0.17526082]
[1757897754443,0.07436865,115080.0,115070.0,0.17526082]
[1757897755242,0.05262055,115080.0,115070.0,0.09457]
[1757897755440,0.07436534,115080.0,115070.0,0.17526082]
[1757897756147,0.05262055,115080.0,115070.0,0.17526082]
[1757897756346,0.07436204,115080.0,115070.0,0.17526082]
[1757897758741,0.07436204,115080.0,115070.0,0.09457]
[1757897759038,0.07436204,115080.0,115070.0,0.17526082]
[1757897759250,0.05262055,115080.0,115070.0,0.17526082]
[1757897761050,0.05262055,115080.0,115070.0,0.17226082]
[1757897762349,0.05262055,115080.0,115070.0,0.09157]
[1757897762550,0.05262055,115080.0,115070.0,0.17226082]
[1757897768254,0.07434422,115080.0,115070.0,0.17226082]
[1757897769155,0.07434422,115080.0,115070.0,0.09157]
[1757897769357,0.07434422,115080.0,115070.0,0.17226082]
[1757897774559,0.07434422,115080.0,115070.0,0.96186082]
[1757897778357,0.07434422,115080.0,115070.0,0.17226082]
[1757897778562,0.07434422,115080.0,115070.0,0.96186082]
[1757897778762,0.07434422,115080.0,115070.0,0.88117]
[1757897778964,0.07434422,115080.0,115070.0,0.96186082]
[1757897782571,0.07434422,115080.0,115070.0,0.88117]
[1757897782764,0.07434422,115080.0,115070.0,0.96186082]
[1757897783763,0.07434422,115080.0,115070.0,0.96191067]
[1757897789073,0.07434422,115080.0,115070.0,0.96183067]
[1757897789671,0.07434422,115080.0,115070.0,0.17231067]
[1757897790076,0.07434422,115080.0,115070.0,0.96179067]
[1757897792574,0.07434422,115080.0,115070.0,0.17231067]
[1757897792776,0.07434422,115080.0,115070.0,0.96179067]
[1757897796081,0.07434422,115080.0,115070.0,0.17231067]
[1757897796284,0.07434422,115080.0,115070.0,0.96175067]
[1757897805186,0.07434422,115080.0,115070.0,0.88101]
[1757897805487,0.03916422,115080.0,115070.0,0.97131067]
[1757897805788,0.06149422,115080.0,115070.0,0.97131067]
[1757897805989,0.07485422,115080.0,115070.0,0.96175067]
[1757897807993,0.06149422,115080.0,115070.0,0.97131067]
[1757897808192,0.07485422,115080.0,115070.0,0.96175067]
[1757897815089,0.07485422,115080.0,115070.0,0.17231067]
[1757897815394,0.07494032,115080.0,115070.0,0.96159067]
[1757897825309,0.07494032,115080.0,115070.0,0.17231067]
[1757897825608,0.07494032,115080.0,115070.0,0.96151067]
[1757897826105,0.07494032,115080.0,115070.0,0.17231067]
[1757897826308,0.07494032,115080.0,115070.0,0.96151067]
[1757897827105,0.07494032,115080.0,115070.0,0.17231067]
[1757897827303,0.07494032,115080.0,115070.0,0.88077]
[1757897827606,0.07494032,115080.0,115070.0,0.96151067]
[1757897829703,0.06158032,115080.0,115070.0,0.97107067]
[1757897830409,0.07530032,115080.0,115070.0,0.97107067]
[1757897831003,0.07530032,115080.0,115070.0,0.96151067]
[1757897832817,0.06158032,115080.0,115070.0,0.97107067]
[1757897833910,0.07530032,115080.0,115070.0,0.96151067]
[1757897835106,0.06158032,115080.0,115070.0,0.97107067]
[1757897835715,0.06158032,115080.0,115070.0,0.96151067]
[1757897835917,0.07530032,115080.0,115070.0,0.96151067]
[1757897837612,0.06158032,115080.0,115070.0,0.97107067]
[1757897839715,0.07530032,115080.0,115070.0,0.96151067]
[1757897840514,0.07530032,115080.0,115070.0,0.97107067]
[1757897841018,0.06158032,115080.0,115070.0,0.97107067]
[1757897843821,0.06158032,115080.0,115070.0,0.97107011]
[1757897847621,0.06158032,115080.0,115070.0,0.89033]
[1757897847829,0.06158032,115080.0,115070.0,0.97107011]
[1757897849221,0.01744055,115080.0,115070.0,1.88867672]
[1757897849525,0.01788363,115100.0,115090.0,0.02504]
[1757897849826,0.04002322,115100.0,115090.0,0.98478011]
[1757897851227,0.04002322,115100.0,115090.0,1.42478011]
[1757897851523,0.044898,115120.0,115090.0,1.87163131]
[1757897851524,0.01372,115120.0,115090.0,1.87163131]
[1757897851723,0.01747337,115100.0,115090.0,1.5408912]
[1757897852426,0.01747337,115100.0,115090.0,1.4308912]
[1757897852927,0.01747337,115100.0,115090.0,1.51163131]
[1757897854821,0.01372,115120.0,115100.0,0.0868434]
[1757897855021,0.05358918,115130.0,115110.0,0.16148022]
[1757897855022,0.067328,115130.0,115110.0,0.16148022]
[1757897855221,0.03615,115130.0,115120.0,0.08074011]
[1757897857930,0.03579,115120.0,115100.0,0.10085551]
[1757897858129,0.03579,115120.0,115100.0,1.02649551]
[1757897858829,0.03579,115110.0,115100.0,0.6301154]
[1757897859023,0.01344,115110.0,115100.0,1.49961551]
[1757897859734,0.01344,115110.0,115100.0,1.56904384]
[1757897860431,0.01344,115110.0,115100.0,0.78028384]
[1757897860619,0.03579,115110.0,115100.0,1.56900384]
[1757897861031,0.03579,115110.0,115100.0,0.78028384]
[1757897861329,0.03579,115110.0,115090.0,0.2666]
[1757897861330,0.03579,115100.0,115090.0,0.2666]
[1757897861519,0.03579,115090.0,115080.0,0.92850592]
[1757897861724,0.03579,115090.0,115080.0,1.55924603]
[1757897862023,0.03579,115090.0,115080.0,0.76]
[1757897862224,0.01344,115070.0,115060.0,0.07733081]
[1757897862426,0.01344,115080.0,115060.0,1.67946011]
[1757897862626,0.01344,115080.0,115070.0,0.08074011]
[1757897862836,0.01344,115080.0,115070.0,0.60074011]
[1757897863632,0.03579,115080.0,115070.0,0.60074011]
[1757897866732,0.03579,115080.0,115070.0,1.38946011]
[1757897868137,0.03579,115080.0,115070.0,1.59946011]
[1757897871938,0.03579,115080.0,115070.0,1.86606011]
[1757897878039,0.01344,115090.0,115070.0,1.94680022]
[1757897878340,0.01344,115100.0,115080.0,0.16148022]
[1757897878542,0.03543533,115100.0,115090.0,0.86942011]
[1757897880340,0.01344,115100.0,115090.0,0.86942011]
[1757897881436,0.01329,115090.0,115080.0,1.05528]
[1757897881637,0.0352,115090.0,115080.0,1.71598011]
[1757897882241,0.0352,115090.0,115080.0,1.92598011]
[1757897882442,0.0352,115090.0,115080.0,1.0566]
[1757897882643,0.0352,115090.0,115080.0,1.92598011]
[1757897884543,0.0352,115090.0,115080.0,1.71598011]
[1757897885137,0.0352,115090.0,115080.0,1.92598011]
[1757897886838,0.0352,115090.0,115080.0,1.34598011]
[1757897887047,0.0352,115090.0,115080.0,1.52598011]
[1757897887736,0.01329,115090.0,115080.0,1.52598011]
[1757897888337,0.03529069,115090.0,115080.0,1.52598011]
[1757897890941,0.03529069,115090.0,115080.0,1.34598011]
[1757897891141,0.03529069,115090.0,115080.0,1.85598011]
[1757897892144,0.03529069,115090.0,115080.0,1.64598011]
[1757897894546,0.05817069,115090.0,115080.0,0.85734011]
[1757897894747,0.30817069,115090.0,115080.0,0.2666]
[1757897895847,0.01317,115080.0,115070.0,1.13590011]
[1757897896042,0.01317,115080.0,115070.0,1.73590011]
[1757897896244,0.03517069,115080.0,115070.0,1.73590011]
[1757897896949,0.02200069,115080.0,115070.0,1.73590011]
[1757897897345,0.03529069,115090.0,115070.0,1.73590011]
[1757897897548,0.05817069,115090.0,115080.0,0.08074011]
[1757897898145,0.03529069,115090.0,115080.0,0.08074011]
[1757897898650,0.05817069,115090.0,115080.0,0.08074011]
[1757897900053,0.05817069,115090.0,115070.0,1.05516]
[1757897900247,0.05817069,115090.0,115080.0,0.08074011]
[1757897901255,0.05817069,115090.0,115070.0,1.05516]
[1757897901453,0.03529069,115090.0,115080.0,0.08074011]
[1757897901753,0.02200069,115090.0,115080.0,0.34734011]
[1757897902053,0.08949869,115100.0,115080.0,0.34734011]
[1757897902250,0.01317,115090.0,115080.0,0.2666]
[1757897902451,0.03517069,115090.0,115080.0,0.2666]
[1757897903052,0.01344,115100.0,115080.0,1.4066]
[1757897903253,0.02202691,115100.0,115090.0,0.78852]
[1757897903450,0.02202691,115100.0,115090.0,1.45926011]
[1757897905854,0.02202691,115100.0,115090.0,1.53991084]
[1757897906763,0.03519691,115100.0,115090.0,1.45917542]
[1757897907059,0.01317,115100.0,115090.0,1.45917542]
[1757897907353,0.01317,115100.0,115090.0,0.67069542]
[1757897907558,0.01317,115100.0,115090.0,1.45913542]
[1757897909359,0.03605,115100.0,115090.0,0.67069542]
[1757897910262,0.03605,115100.0,115090.0,1.45909542]
[1757897910766,0.03605,115100.0,115090.0,0.67069542]
[1757897911161,0.13875976,115100.0,115090.0,0.59]
[1757897911356,0.13875976,115100.0,115090.0,0.86909542]
[1757897911561,0.03605,115090.0,115080.0,0.08069542]
[1757897911866,0.03605,115090.0,115080.0,0.99979084]
[1757897912161,0.01317,115080.0,115060.0,0.30671496]
[1757897912364,0.01317,115070.0,115060.0,1.00741038]
[1757897912566,0.01317,115070.0,115060.0,1.9365058]
[1757897914866,0.01317,115080.0,115060.0,1.9365058]
[1757897915063,0.03605,115080.0,115060.0,1.85581038]
[1757897915369,0.03605,115080.0,115070.0,0.08069542]
[1757897915572,0.01317,115080.0,115070.0,1.40905542]
[1757897915964,0.01317,115080.0,115070.0,0.62069542]
[1757897916164,0.03426,115080.0,115070.0,1.40905542]
[1757897916872,0.03426,115080.0,115070.0,0.62069542]
[1757897917073,0.03426,115080.0,115070.0,1.40905542]
[1757897918071,0.01317,115090.0,115070.0,1.48975084]
[1757897918273,0.0562442,115100.0,115080.0,0.16139084]
[1757897918474,0.0562442,115100.0,115090.0,0.86905542]
[1757897918774,0.0562442,115100.0,115090.0,0.08069542]
[1757897927575,0.13693962,115100.0,115090.0,0.08069542]
[1757897934175,0.0562442,115100.0,115090.0,0.08069542]
[1757897934382,0.13693962,115100.0,115090.0,0.08069542]
[1757897939280,0.0562442,115100.0,115090.0,0.08069542]
[1757897941276,0.13693962,115100.0,115090.0,0.08069542]
[1757897941681,0.03617,115090.0,115080.0,0.2666]
[1757897941882,0.0581542,115090.0,115080.0,1.33623084]
[1757897944488,0.0581542,115090.0,115080.0,1.76623084]
[1757897945585,0.0348242,115090.0,115080.0,1.76623084]
[1757897949486,0.044018,115090.0,115080.0,1.76623084]
[1757897949678,0.0660022,115090.0,115080.0,1.76623084]
[1757897952591,0.0348242,115090.0,115080.0,1.76623084]
[1757897959998,0.0348242,115090.0,115080.0,1.60484]
[1757897960197,0.0348242,115090.0,115080.0,1.76623084]
[1757897963697,0.0348242,115090.0,115080.0,0.97799084]
[1757897963900,0.0348242,115090.0,115080.0,1.76607084]
[1757897965795,0.0348242,115090.0,115080.0,1.68540103]
[1757897968004,0.0348242,115090.0,115080.0,1.60468]
[1757897968202,0.0348242,115090.0,115080.0,1.68540103]
[1757897971906,0.0569142,115090.0,115080.0,0.89732103]
[1757897972108,0.0569142,115090.0,115080.0,1.32532103]
[1757897973308,0.0569142,115090.0,115080.0,0.53732103]
[1757897973506,0.0569142,115090.0,115080.0,1.68532103]
[1757897975302,0.0219842,115090.0,115080.0,1.76604206]
[1757897975503,0.0219842,115090.0,115080.0,2.01604206]
[1757897975804,0.0219842,115090.0,115080.0,2.01600206]
[1757897976000,0.0617717,115110.0,115080.0,2.01600206]
[1757897976205,0.08384542,115110.0,115100.0,0.08072103]
[1757897976408,0.05266742,115110.0,115100.0,0.86868103]
[1757897976598,0.07595742,115110.0,115100.0,0.86868103]
[1757897977504,0.05266742,115110.0,115100.0,0.86868103]
[1757897977706,0.05266742,115110.0,115100.0,1.45868103]
[1757897977906,0.03949742,115110.0,115100.0,1.74868103]
[1757897978606,0.0174237,115110.0,115100.0,1.74868103]
[1757897979204,0.0174237,115110.0,115100.0,1.75737277]
[1757897979701,0.04018743,115130.0,115100.0,2.15738321]
[1757897979702,0.01342,115130.0,115100.0,2.15738321]
[1757897979904,0.02204742,115130.0,115120.0,0.08072103]
[1757897980103,0.03546742,115140.0,115120.0,0.68072103]
[1757897980306,0.05875742,115140.0,115130.0,0.86864103]
[1757897981710,0.01342,115130.0,115110.0,0.08072103]
[1757897981899,0.01342,115130.0,115120.0,0.28396]
[1757897982100,0.01342,115130.0,115120.0,0.96468103]
[1757897982702,0.0587245,115130.0,115120.0,0.68072103]
[1757897982906,0.0587245,115130.0,115120.0,1.46856103]
[1757897983410,0.0587245,115130.0,115120.0,0.68072103]
[1757897983810,0.0587245,115130.0,115120.0,1.46856103]
[1757897984507,0.0354345,115130.0,115120.0,1.46856103]
[1757897984810,0.0354345,115130.0,115120.0,0.68072103]
[1757897985014,0.0354345,115130.0,115120.0,1.46852103]
[1757897985315,0.0220145,115130.0,115120.0,1.46852103]
[1757897985913,0.0220145,115130.0,115120.0,0.68072103]
[1757897986218,0.01342,115140.0,115120.0,1.46848103]
[1757897986413,0.03671,115140.0,115130.0,0.08072103]
[1757897986613,0.05870036,115140.0,115130.0,0.08072103]
[1757897990013,0.05870036,115140.0,115130.0,0.86844103]
[1757897990716,0.05870036,115140.0,115130.0,1.13504103]
[1757897990916,0.05870036,115140.0,115130.0,1.14392928]
[1757897991110,0.05870036,115140.0,115130.0,0.35620928]
[1757897991512,0.05870036,115140.0,115130.0,1.06956928]
[1757897991819,0.05870036,115140.0,115130.0,0.35620928]
[1757897992019,0.05870036,115140.0,115130.0,1.14388928]
[1757897992516,0.05870036,115140.0,115130.0,1.06316825]
[1757897992716,0.05870036,115140.0,115130.0,1.14388928]
[1757897996416,0.05870036,115140.0,115130.0,0.35620928]
[1757897996721,0.05870036,115140.0,115130.0,1.14380928]
[1757897998022,0.05868552,115140.0,115130.0,1.14380928]
[1757898000613,0.05868552,115140.0,115130.0,0.35620928]
[1757898000812,0.38940655,115140.0,115130.0,0.2666]
[1757898001017,0.30868552,115140.0,115130.0,0.98084]
[1757898001219,0.38940655,115140.0,115130.0,0.98084]
[1757898002032,0.30868552,115140.0,115130.0,0.98084]
[1757898002233,0.38940655,115140.0,115130.0,0.2666]
[1757898002726,0.42058455,115140.0,115130.0,0.2666]
[1757898004330,0.46730433,115140.0,115130.0,0.2666]
[1757898005425,0.43612633,115140.0,115130.0,0.2666]
[1757898005630,0.03607,115130.0,115120.0,0.71844103]
[1757898005923,0.08922926,115130.0,115120.0,0.71844103]
[1757898006127,0.08922926,115130.0,115120.0,0.08072103]
[1757898006436,0.21667007,115130.0,115120.0,0.78752]
[1757898007333,0.1047653,115130.0,115120.0,0.78752]
[1757898010232,0.01292,115110.0,115100.0,2.08501044]
[1757898010438,0.01292,115110.0,115100.0,3.26593044]
[1757898010631,0.03489552,115110.0,115100.0,3.26593044]
[1757898010832,0.03489552,115110.0,115100.0,3.21593044]
[1757898011332,0.03489552,115110.0,115100.0,2.49592]
[1757898011537,0.0661233,115110.0,115100.0,2.58539059]
[1757898011734,0.0661233,115110.0,115100.0,2.57664103]
[1757898012336,0.0661233,115110.0,115100.0,3.32664103]
[1757898012734,0.03489552,115110.0,115100.0,3.32664103]
[1757898013636,0.38876655,115110.0,115100.0,0.54]
[1757898013938,0.03607,115090.0,115080.0,1.01584103]
[1757898014134,0.13876655,115090.0,115080.0,0.58]
[1757898014333,0.38876655,115090.0,115080.0,0.11]
[1757898014539,0.30804552,115090.0,115080.0,0.19072103]
[1757898015241,0.05804552,115090.0,115080.0,0.19072103]
[1757898016138,0.03489552,115090.0,115080.0,0.16144206]
[1757898016336,0.02197552,115090.0,115080.0,1.26144206]
[1757898016733,0.03489552,115100.0,115080.0,1.26144206]
[1757898016937,0.03489552,115100.0,115090.0,0.86832103]
[1757898016938,0.03493962,115100.0,115090.0,0.86832103]
[1757898017138,0.02201962,115100.0,115090.0,1.44832103]
[1757898017939,0.05808962,115100.0,115060.0,0.55312217]
[1757898018237,0.03607,115090.0,115070.0,0.86876103]
[1757898018536,0.03607,115080.0,115070.0,0.76]
[1757898018740,0.03607,115080.0,115070.0,1.62896103]
[1757898019745,0.01292,115080.0,115070.0,1.47896103]
[1757898020044,0.01292,115100.0,115070.0,2.14968206]
[1757898020239,0.03607,115100.0,115090.0,0.08072103]
[1757898020445,0.05807693,115100.0,115090.0,0.86896103]
[1757898021034,0.01292,115090.0,115080.0,0.34732103]
[1757898021238,0.05807192,115090.0,115080.0,0.8166]
[1757898021546,0.03607,115070.0,115060.0,0.31072423]
[1757898021745,0.03607,115070.0,115060.0,0.8]
[1757898021941,0.13878824,115070.0,115060.0,0.15]
[1757898022447,0.03607,115040.0,115030.0,0.29872226]
[1757898022746,0.01292,115040.0,115030.0,1.92584226]
[1757898023347,0.01292,115040.0,115030.0,1.85712929]
[1757898023648,0.01292,115040.0,115030.0,1.97785032]
[1757898023946,0.01292,115040.0,115030.0,1.99741921]
[1757898024247,0.01292,115040.0,115030.0,2.20741921]
[1757898024546,0.01292,115050.0,115030.0,2.20741921]
[1757898024749,0.01292,115050.0,115040.0,0.10028992]
[1757898024949,0.03607,115050.0,115040.0,0.69028992]
[1757898026142,0.01292,115050.0,115040.0,0.69028992]
[1757898026542,0.03024391,115060.0,115040.0,0.69028992]
[1757898026746,0.03024391,115060.0,115050.0,0.89004992]
[1757898026948,0.05339391,115060.0,115050.0,0.97004992]
[1757898027150,0.01292,115070.0,115050.0,1.46004992]
[1757898027345,0.01292,115070.0,115060.0,0.10028992]
[1757898027543,0.01292,115070.0,115060.0,0.68028992]
[1757898027849,0.01292,115070.0,115060.0,0.70615271]
[1757898028446,0.03607,115060.0,115050.0,0.14630482]
[1757898028648,0.03607,115060.0,115050.0,1.49654482]
[1757898030346,0.01292,115060.0,115050.0,1.49654482]
[1757898032549,0.03607,115060.0,115050.0,1.47619271]
[1757898034850,0.03607,115060.0,115050.0,0.68615271]
[1757898035050,0.03607,115060.0,115050.0,1.47607271]
[1757898035654,0.03607,115060.0,115050.0,0.56]
[1757898035851,0.28607,115060.0,115050.0,0.56]
[1757898036452,0.30802357,115060.0,115050.0,0.01]
[1757898039255,0.05802357,115060.0,115050.0,0.01]
[1757898041151,0.05802357,115060.0,115050.0,0.13615271]
[1757898041858,0.05802357,115060.0,115050.0,0.01]
[1757898043858,0.05802357,115060.0,115050.0,0.09076996]
[1757898046258,0.08922456,115060.0,115050.0,0.09076996]
[1757898049962,0.08922456,115060.0,115050.0,0.01]
[1757898050155,0.08922456,115060.0,115050.0,0.09076996]
[1757898050351,0.11399077,115060.0,115050.0,0.09076996]
[1757898050662,0.08922456,115060.0,115050.0,0.09076996]
[1757898051261,0.11399077,115060.0,115050.0,0.09076996]
[1757898051558,0.13594434,115060.0,115050.0,0.09076996]
[1757898052662,0.2167143,115060.0,115050.0,0.09076996]
[1757898052958,0.11279434,115060.0,115050.0,0.09076996]
[1757898053163,0.06607456,115060.0,115050.0,0.68141299]
[1757898053360,0.03487357,115060.0,115050.0,0.94141299]
[1757898060464,0.05798357,115060.0,115050.0,1.73053299]
[1757898061072,0.03603,115060.0,115050.0,1.73053299]
[1757898061370,0.05810799,115060.0,115050.0,1.73053299]
[1757898061573,0.05810799,115060.0,115050.0,0.94141299]
[1757898061969,0.03499799,115060.0,115050.0,1.73049299]
[1757898062571,0.05810799,115060.0,115050.0,0.77987307]
[1757898062773,0.05810799,115060.0,115050.0,1.73045299]
[1757898063070,0.05810799,115060.0,115050.0,1.64968303]
[1757898063471,0.05810799,115060.0,115050.0,1.64960303]
[1757898064168,0.05810799,115060.0,115050.0,0.86064303]
[1757898064374,0.05810799,115060.0,115050.0,1.64956303]
[1757898064674,0.05810799,115060.0,115050.0,1.39956303]
[1757898065475,0.05810799,115060.0,115050.0,1.39952303]
[1757898067774,0.05810799,115060.0,115050.0,1.66612303]
[1757898068775,0.05810799,115060.0,115050.0,1.58535307]
[1757898068975,0.05810799,115060.0,115050.0,1.66612303]
[1757898069172,0.05810799,115060.0,115050.0,1.58535307]
[1757898069365,0.05810799,115060.0,115050.0,1.66612303]
[1757898070178,0.05810799,115060.0,115050.0,1.58535307]
[1757898070376,0.05810799,115060.0,115050.0,1.66612303]
[1757898071174,0.05810799,115060.0,115050.0,1.58535307]
[1757898071370,0.05810799,115060.0,115050.0,1.66640303]
[1757898074088,0.13887795,115060.0,115050.0,0.87724303]
[1757898074285,0.13887795,115060.0,115050.0,1.66632303]
[1757898074488,0.38887795,115060.0,115050.0,0.7766]
[1757898074690,0.38887795,115060.0,115050.0,1.17640996]
[1757898076490,0.38887795,115060.0,115050.0,0.38736996]
[1757898076793,0.38887795,115060.0,115050.0,0.3066]
[1757898076993,0.38887795,115060.0,115050.0,0.38736996]
[1757898077895,0.38887795,115060.0,115050.0,0.3066]
[1757898078090,0.38887795,115060.0,115050.0,0.38736996]
[1757898078687,0.46964791,115060.0,115050.0,0.3066]
[1757898078888,0.46964791,115060.0,115050.0,0.2666]
[1757898079288,0.38887795,115060.0,115050.0,0.34736996]
[1757898079494,0.38887795,115060.0,115050.0,0.2666]
[1757898079696,0.38887795,115060.0,115050.0,0.08076996]
[1757898079994,0.01364,115050.0,115040.0,0.78884]
[1757898080195,0.05782799,115050.0,115040.0,0.47153992]
[1757898080495,0.14717801,115050.0,115040.0,1.17972996]
[1757898081085,0.14717801,115050.0,115040.0,0.31]
[1757898081590,0.13859795,115050.0,115040.0,0.39076996]
[1757898081786,0.05782799,115050.0,115040.0,0.39076996]
[1757898081987,0.13859795,115050.0,115040.0,0.39076996]
[1757898082186,0.13859795,115050.0,115040.0,0.31]
[1757898082492,0.13859795,115050.0,115040.0,0.39076996]
[1757898085498,0.05782799,115050.0,115040.0,0.39076996]
[1757898085694,0.13859795,115050.0,115040.0,0.39076996]
[1757898086597,0.13859795,115050.0,115040.0,0.31]
[1757898086800,0.13859795,115050.0,115040.0,0.39076996]
[1757898089086,0.13859795,115050.0,115040.0,0.31]
[1757898089292,0.13859795,115050.0,115040.0,0.39076996]
[1757898089902,0.05782799,115050.0,115040.0,0.31]
[1757898090294,0.05782799,115050.0,115040.0,0.39078961]
[1757898090894,0.03571799,115050.0,115040.0,0.39078961]
[1757898091294,0.05782799,115050.0,115040.0,0.39078961]
[1757898091501,0.02207799,115050.0,115040.0,0.90738961]
[1757898091696,0.02207799,115050.0,115040.0,1.20738961]
[1757898091898,0.01292,115060.0,115040.0,1.20738961]
[1757898092203,0.05706136,115060.0,115050.0,0.87030961]
[1757898092396,0.05706136,115060.0,115050.0,1.44030961]
[1757898094806,0.05706136,115060.0,115050.0,1.44026961]
[1757898096505,0.05706136,115060.0,115050.0,0.65078961]
[1757898096903,0.05706136,115060.0,115050.0,1.44014961]
[1757898098508,0.05706136,115060.0,115050.0,0.65078961]
[1757898098707,0.05706136,115060.0,115050.0,1.44010961]
[1757898098904,0.05706136,115060.0,115050.0,1.44002961]
[1757898103709,0.05706136,115060.0,115050.0,1.35892]
[1757898103904,0.05706136,115060.0,115050.0,1.43970961]
[1757898104310,0.05706136,115060.0,115050.0,1.35892]
[1757898104510,0.05706136,115060.0,115050.0,1.43970961]
[1757898108016,0.05706136,115060.0,115050.0,0.65078961]
[1757898108221,0.03495136,115060.0,115050.0,1.43978961]
[1757898108412,0.03495136,115060.0,115050.0,1.46281868]
[1757898108717,0.05657136,115060.0,115050.0,1.46281868]
[1757898109117,0.05657136,115060.0,115050.0,0.67141868]
[1757898109310,0.05657136,115060.0,115050.0,1.46277868]
[1757898110813,0.05657136,115060.0,115050.0,0.67141868]
[1757898111014,0.05657136,115060.0,115050.0,1.46261868]
[1757898111716,0.03795136,115060.0,115050.0,1.46261868]
[1757898111913,0.03795136,115060.0,115050.0,2.12340829]
[1757898111914,0.003,115060.0,115050.0,2.12340829]
[1757898115220,0.003,115060.0,115050.0,2.39000829]
[1757898115621,0.003,115060.0,115050.0,2.39056829]
[1757898121217,0.003,115060.0,115050.0,2.0303043]
[1757898121522,0.003,115060.0,115050.0,2.2803043]
[1757898124021,0.003,115060.0,115050.0,2.0303043]
[1757898124425,0.003,115060.0,115050.0,1.2385443]
[1757898124725,0.003,115060.0,115050.0,1.9437868]
[1757898124927,0.003,115060.0,115050.0,1.1516668]
[1757898125129,0.01649,115060.0,115050.0,1.9437468]
[1757898125726,0.01649,115060.0,115050.0,1.07087719]
[1757898125927,0.01649,115060.0,115050.0,1.86303719]
[1757898127127,0.01649,115060.0,115050.0,2.12963719]
[1757898128030,0.01649,115060.0,115050.0,1.33747719]
[1757898128328,0.01649,115060.0,115050.0,2.12963719]
[1757898130132,0.003,115060.0,115050.0,2.12963719]
[1757898130837,0.003,115060.0,115050.0,2.2104268]
[1757898134635,0.003,115060.0,115050.0,1.4182668]
[1757898134835,0.01632,115060.0,115050.0,2.2103468]
[1757898135239,0.003,115060.0,115050.0,2.2103468]
[1757898135437,0.003,115060.0,115050.0,2.2972243]
[1757898136236,0.003,115060.0,115050.0,2.2103468]
[1757898136442,0.003,115060.0,115050.0,2.2972243]
[1757898137735,0.003,115060.0,115050.0,1.4182668]
[1757898137931,0.003,115060.0,115050.0,2.2115868]
[1757898138138,0.003,115060.0,115050.0,1.4182668]
[1757898138341,0.003,115060.0,115050.0,2.2115068]
[1757898139947,0.003,115060.0,115050.0,1.4182668]
[1757898140143,0.003,115060.0,115050.0,2.2117068]
[1757898145242,0.003,115060.0,115050.0,2.2985843]
[1757898149752,0.003,115060.0,115050.0,2.29848424]
[1757898151653,0.01364,115090.0,115060.0,0.0868693]
[1757898151841,0.01364,115090.0,115080.0,0.16147916]
[1757898152148,0.01364,115090.0,115080.0,0.69147916]
[1757898152350,0.058133,115090.0,115080.0,0.69147916]
[1757898152647,0.035683,115090.0,115080.0,0.69147916]
[1757898152949,0.03101738,115100.0,115080.0,0.69147916]
[1757898153251,0.07550087,115100.0,115090.0,0.87397958]
[1757898153440,0.07550087,115100.0,115090.0,1.48397958]
[1757898154553,0.07850087,115100.0,115090.0,1.48393958]
[1757898154854,0.07850087,115100.0,115090.0,0.69073958]
[1757898155054,0.15924045,115100.0,115090.0,1.48389958]
[1757898155252,0.15924045,115100.0,115090.0,0.69073958]
[1757898155555,0.15924045,115100.0,115090.0,1.48385958]
[1757898156152,0.15924045,115100.0,115090.0,0.69073958]
[1757898156754,0.15924045,115100.0,115090.0,1.48449958]
[1757898157355,0.15924045,115100.0,115090.0,0.69073958]
[1757898157749,0.15924045,115100.0,115090.0,1.48441958]
[1757898161159,0.15924045,115100.0,115090.0,0.61]
[1757898161355,0.15924045,115100.0,115090.0,1.42497958]
[1757898162260,0.13720696,115100.0,115090.0,1.42497958]
[1757898162859,0.15920217,115100.0,115090.0,1.42497958]
[1757898163261,0.15920217,115100.0,115090.0,0.69073958]
[1757898163463,0.15920217,115100.0,115090.0,1.48401958]
[1757898165762,0.48994175,115100.0,115090.0,1.40312]
[1757898166068,0.03578,115090.0,115080.0,0.08073958]
[1757898166266,0.11651958,115090.0,115080.0,1.11056]
[1757898166466,0.11651958,115090.0,115080.0,1.19129958]
[1757898167365,0.11851958,115090.0,115080.0,1.19129958]
[1757898169260,0.14051798,115090.0,115080.0,1.19129958]
[1757898170171,0.14051798,115090.0,115080.0,1.11056]
[1757898170376,0.14051798,115090.0,115080.0,1.19129958]
[1757898174172,0.14051798,115090.0,115080.0,0.64129958]
[1757898174674,0.03424,115080.0,115070.0,0.34733958]
[1757898174873,0.13697798,115080.0,115070.0,1.69001958]
[1757898177473,0.13697798,115080.0,115070.0,1.60928]
[1757898177777,0.13697798,115080.0,115070.0,1.42341958]
[1757898179277,0.13897798,115080.0,115070.0,1.42341958]
[1757898180372,0.03424,115070.0,115060.0,0.2666]
[1757898180566,0.13697798,115070.0,115060.0,0.87361958]
[1757898180766,0.13697798,115070.0,115060.0,0.79288]
[1757898180975,0.13697798,115070.0,115060.0,0.87361958]
[1757898181175,0.13697798,115070.0,115060.0,0.79288]
[1757898181683,0.13697798,115070.0,115060.0,0.87361958]
[1757898183480,0.13897798,115070.0,115060.0,0.87361958]
[1757898184777,0.0582384,115070.0,115060.0,0.87361958]
[1757898185080,0.13897798,115070.0,115060.0,0.87353958]
[1757898185781,0.13897798,115070.0,115060.0,0.7928]
[1757898185983,0.13897798,115070.0,115060.0,0.87353958]
[1757898187173,0.13897798,115070.0,115060.0,0.7928]